[Event "Polish University-ch Women 2024"]
[Site "Lublin"]
[Date "2024.02.23"]
[Round "1.1"]
[White "Sliwicka, Alicja"]
[Black "Chomicka, Kinga"]
[Result "1-0"]
[ECO "C68"]
[WhiteElo "2309"]
[BlackElo "1700"]
[Annotator "TA"]
[PlyCount "135"]
[EventDate "2024.02.22"]
[EventType "swiss"]
[EventCountry "POL"]
[SourceTitle "playchess.com"]
[Source "ChessBase"]
[SourceQuality "1"]
[TimeControl "600+3"]

{[%evp 16,135,104,97,144,134,134,135,98,102,103,51,136,147,126,125,125,97,144,140,143,123,116,93,156,116,152,51,97,89,112,106,124,107,141,81,102,116,120,107,104,87,80,27,27,27,138,0,0,0,122,0,0,0,97,107,133,117,91,116,137,24,166,52,176,158,154,156,175,147,182,149,156,141,156,95,156,156,191,163,197,163,177,177,177,177,177,177,177,177,177,177,205,166,455,150,150,150,150,150,150,150,150,150,175,150,150,150,422,419,383,416,388,383,423,448,601,585,859,825,1023,997]} 1. e4 {[%emt 0:00:02]} e5 {[%emt 0:00:01]} 2. Nf3 {[%emt 0:00:02]} Nc6 {[%emt 0:00:02]} 3. Nc3 {[%emt 0:00:02]} d6 {[%emt 0:00:03]} 4. d4 {[%emt 0:00:03]} Bg4 {[%emt 0:00:10]} 5. Bb5 {[%emt 0:01:57]} a6 {[%emt 0:01:37]} 6. Bxc6+ {[%emt 0:00:03]} bxc6 {[%emt 0:00:02]} 7. dxe5 {[%emt 0:00:05]} Bxf3 {[%emt 0:00:39]} 8. Qxf3 {[%emt 0:00:04]} dxe5 {[%emt 0:00:06]} 9. O-O {[%emt 0:00:04]} Bc5 {[%emt 0:01:09]} (9... Bd6 $142 10. Qd3 a5) 10. Qg3 $16 {[%emt 0:00:35]} Qf6 {[%emt 0:00:42]} 11. Bg5 {[%emt 0:00:02]} Qe6 {[%emt 0:00:14] Weiß steht deutlich besser.} 12. Be3 {[%emt 0:00:18]} (12. Na4 {vereinfacht} Bd6 13. b3 h6 14. Qc3) 12... Bxe3 {[%emt 0:00:44]} 13. Qxg7 {[%emt 0:01:46]} (13. Qxe3 $16 Nf6 14. Na4) 13... Qf6 {[%emt 0:00:39]} ({Vorzuziehen ist} 13... Bf4 $1 $14) 14. Qxf6 {[%emt 0:00:05]} Nxf6 {[%emt 0:00:03][%cal Bg8f6,Bf6d7,Bd7c5][%mdl 32]} 15. fxe3 {[%emt 0:00:02]} Ke7 {[%emt 0:01:19]} 16. h3 {[%emt 0:00:49]} Rad8 {[%emt 0:00:53]} (16... Ne8 $142) 17. Rf5 {[%emt 0:00:20]} Nd7 {[%emt 0:00:32]} 18. Rd1 {[%emt 0:00:29]} f6 {[%emt 0:00:15]} 19. Kf1 {[%emt 0:00:21] Weiß hat aktiveres Spiel.} Ke6 {[%emt 0:00:30]} (19... h5 $142) 20. Ke2 {[%emt 0:00:33]} Nc5 {[%emt 0:00:37][%cal Oc5e4]} 21. Rff1 {[%emt 0:00:37]} ({Besser ist} 21. Rxd8 $16 Rxd8 22. Rh5) 21... Rd6 {[%emt 0:00:11]} (21... Rdg8 $14 {kam in Betracht.}) 22. b3 {[%emt 0:00:26]} Rg8 {[%emt 0:00:06]} 23. g4 {[%emt 0:00:12]} Rgd8 {[%emt 0:00:02]} 24. a3 {[%emt 0:00:35]} Nd7 {[%emt 0:00:21]} 25. b4 {[%emt 0:00:17]} (25. Rf5 $142) 25... Nb6 {[%emt 0:00:10]} 26. Rxd6+ {[%emt 0:00:10]} (26. Rd3 {ist vielschichtiger.} h6 27. a4 Nc4 28. a5) 26... cxd6 {[%emt 0:00:03][%mdl 4096] Endspiel. KRN-KRN} 27. a4 {[%emt 0:00:17]} Rb8 {[%emt 0:00:04]} 28. Kd3 {[%emt 0:00:25]} Nd7 {[%emt 0:00:05] [#]} 29. Kc4 {[%emt 0:00:05]} (29. Rb1 $1 $16) 29... Nb6+ $11 {[%emt 0:00:01]} 30. Kb3 {[%emt 0:00:05] Schwarz muss nun a5 beachten.} Nd7 {[%emt 0:00:02]} (30... a5 $1 $11) 31. Ka3 {[%emt 0:00:09]} Nb6 $1 {[%emt 0:00:01]} 32. Kb3 {[%emt 0:00:15] Lässt Nc4 nicht zu} Nd7 $1 {[%emt 0:00:01]} 33. Kc4 {[%emt 0:00:01]} (33. a5 $16) 33... Nb6+ {[%emt 0:00:01]} 34. Kd3 {[%emt 0:00:05]} (34. Kb3 $11) 34... Nd7 $16 {[%emt 0:00:05] [#]} 35. Rb1 $1 {[%emt 0:00:01]} Rb6 {[%emt 0:00:12]} 36. Ke2 {[%emt 0:00:13]} Rb8 {[%emt 0:00:01]} 37. a5 {[%emt 0:00:09]} Rb7 {[%emt 0:00:04]} 38. Na4 {[%emt 0:00:03]} (38. Nd1 $16) 38... Rb8 {[%emt 0:00:03]} (38... Nc5 $1 $11 {und Schwarz muss sich keine Sorgen machen.} 39. Nc3 (39. bxc5 $2 {zu gefräßig.} Rxb1 40. cxd6 Kxd6 $19) (39. Nxc5+ dxc5 40. c3 Rb5 $14) 39... Nd7) 39. c3 {[%emt 0:00:02]} (39. c4 $18) 39... Rb7 {[%emt 0:00:04]} (39... Nc5 $1 $14 40. Nxc5+ (40. bxc5 $2 {verliert.} Rxb1 41. cxd6 Kxd6 $19) 40... dxc5) 40. Rg1 {[%emt 0:00:03]} Rb8 {[%emt 0:00:01]} 41. h4 {[%emt 0:00:02]} Rg8 {[%emt 0:00:04]} 42. Kf3 {[%emt 0:00:04]} h6 {[%emt 0:00:05]} 43. Nb2 {[%emt 0:00:05]} Nf8 {[%emt 0:00:02]} 44. Nd3 {[%emt 0:00:03]} Ng6 {[%emt 0:00:02]} 45. h5 {[%emt 0:00:02]} (45. Rh1 $142) 45... Ne7 {[%emt 0:00:10]} (45... Nh8 $142) 46. Nb2 {[%emt 0:00:03]} Nc8 {[%emt 0:00:00]} 47. Rd1 {[%emt 0:00:04]} Rd8 {[%emt 0:00:00]} 48. Ke2 {[%emt 0:00:04]} Na7 {[%emt 0:00:00]} 49. Na4 {[%emt 0:00:02] Und Nc5+ würde nun gewinnen.} Nb5 {[%emt 0:00:02]} 50. Kd3 {[%emt 0:00:05]} Rd7 {[%emt 0:00:05]} 51. c4 {[%emt 0:00:02]} Na7 {[%emt 0:00:03]} 52. Nb6 {[%emt 0:00:02]} Rd8 {[%emt 0:00:02]} 53. Kc3 {[%emt 0:00:03]} Rb8 {[%emt 0:00:06]} 54. Na4 {[%emt 0:00:03]} Nc8 $2 {[%emt 0:00:04]} (54... Rg8 {ist wohl besser.}) 55. Nb2 $2 {[%emt 0:00:03]} (55. c5 $18 {und der Rest ist Schweigen.}) 55... Rb7 {[%emt 0:00:02]} 56. Nd3 {[%emt 0:00:02]} Rg7 {[%emt 0:00:02]} 57. Nf2 {[%emt 0:00:01]} Na7 {[%emt 0:00:04]} 58. Kb3 {[%emt 0:00:04]} Rb7 {[%emt 0:00:03]} 59. Ka4 {[%emt 0:00:02]} Rd7 {[%emt 0:00:02]} 60. Rg1 {[%emt 0:00:05]} Rg7 {[%emt 0:00:02]} 61. Nd3 {[%emt 0:00:02]} Nc8 $2 {[%emt 0:00:03]} (61... Rg8 $16 62. Nf2 Rc8) 62. b5 $18 {[%emt 0:00:05]} cxb5+ {[%emt 0:00:02]} 63. cxb5 {[%emt 0:00:01]} axb5+ {[%emt 0:00:02]} 64. Kxb5 {[%emt 0:00:03]} Rb7+ {[%emt 0:00:04]} 65. Ka4 {[%emt 0:00:08] Weiß steht klar auf Gewinn.} ({Schlechter ist} 65. Kc6 Rb3 66. Rd1 Ke7 $11) 65... Na7 {[%emt 0:00:06]} 66. Rc1 {[%emt 0:00:02] Wehrt Nc6 ab} Rb8 {[%emt 0:00:05]} 67. Nb4 {[%emt 0:00:04]} Kd7 {[%emt 0:00:03]} 68. Nd5 {[%emt 0:00:02] Gewichteter Fehlerwert: Weiß=0.30/Schwarz=0.30.  Verlustzug:     	---       	Schwarz=1     Gewinn verpasst:   	Weiß=1     	---        Fehler:       	Weiß=9     	Schwarz=9     Ungenau:       	---       	Schwarz=4     OK:         	Weiß=15    	Schwarz=9     Bester:       	Weiß=3     	Schwarz=2     Stark:        	Weiß=1     	Schwarz=2} 1-0

[Event "Polish University-ch Women 2024"]
[Site "Lublin"]
[Date "2024.02.23"]
[Round "1.2"]
[White "Jagiello, Roza"]
[Black "Antolak, Julia"]
[Result "0-1"]
[ECO "B84"]
[WhiteElo "1044"]
[BlackElo "2309"]
[Annotator "TA"]
[PlyCount "52"]
[EventDate "2024.02.22"]
[EventType "swiss"]
[EventCountry "POL"]
[SourceTitle "playchess.com"]
[Source "ChessBase"]
[SourceQuality "1"]
[TimeControl "600+3"]

{[%evp 15,52,18,65,-14,-13,-47,31,-266,-275,-259,-94,-338,-326,-329,-270,-277,-167,-166,-163,-239,-233,-347,-326,-377,-372,-424,-417,-487,-495,-627,-620,-602,-551,-1335,-1160,-1119,-1150,-5975,-3343]} 1. e4 {[%emt 0:00:02]} c5 {[%emt 0:00:02]} 2. Nf3 {[%emt 0:00:02]} e6 {[%emt 0:00:01]} 3. d4 {[%emt 0:00:02]} cxd4 {[%emt 0:00:02]} 4. Nxd4 {[%emt 0:00:02]} Nf6 {[%emt 0:00:02]} 5. Nc3 {[%emt 0:00:01]} d6 {[%emt 0:00:01]} 6. Be3 {[%emt 0:00:17]} a6 {[%emt 0:00:02]} 7. Be2 {[%emt 0:00:03]} Be7 {[%emt 0:00:03]} 8. Qd2 {[%emt 0:00:03]} b5 {[%emt 0:00:16]} (8... O-O $11) 9. O-O-O {[%emt 0:01:04]} ({White should try} 9. Bf3 $14) 9... b4 {[%emt 0:00:18]} 10. Na4 {[%emt 0:00:03]} Bd7 {[%emt 0:00:34]} ({Better is} 10... Qa5 $15 11. Nb6 Nxe4 (11... Qxb6 12. Nxe6 Qa5 13. Nxg7+ Kf8 14. Bh6 $16)) 11. b3 $2 {[%emt 0:00:33][%mdl 8192] White is on the road to losing.} (11. Qxb4 $14 Nc6 12. Qb6) 11... Bxa4 $19 {[%emt 0:00:07]} (11... Nxe4 12. Qxb4 d5 13. Qb7 Bxa4 14. Qxa8 $15) 12. bxa4 {[%emt 0:00:01]} Qa5 $2 {[%emt 0:00:34]} (12... Nxe4 $19 {and Black stays clearly on top.} 13. Qxb4 d5) 13. Bc4 $2 {[%emt 0:01:02]} (13. Bf3 $17 O-O (13... Qxa4 14. e5 $11) 14. e5 dxe5 (14... Nd5 $2 15. Nf5 $18) 15. Bxa8 Qxa4 (15... exd4 16. Qxd4 Nbd7 17. Bc6 $11) 16. Nxe6 Qxa2 17. Qd3 Qxe6 18. Bb7) 13... Nxe4 {[%emt 0:00:19]} (13... Qxa4 14. f3 $17) 14. Qd3 {[%emt 0:00:38]} Nc3 {[%emt 0:00:06][%cal Ob8d7] Hoping for ...Nd7!} 15. Bb3 {[%emt 0:01:03]} Nxd1 {[%emt 0:00:12]} (15... Nxa4 16. Nxe6 fxe6 17. Qe4 $11) 16. Rxd1 {[%emt 0:00:02]} d5 {[%emt 0:00:13] [#] Prevents Qe4. Strongly threatening ...0-0.} 17. f4 {[%emt 0:01:04]} (17. Nf5 $142 Bf6 (17... exf5 $2 {loses.} 18. Qxd5 Qxd5 19. Bxd5 $16) 18. Nd6+ Kf8 19. Nc4) 17... O-O {[%emt 0:00:37] ...Qc7 is the strong threat.} 18. Bd2 {[%emt 0:00:30]} (18. f5 {is a better defense.} e5 19. Nf3) 18... Qc5 {[%emt 0:01:04]} 19. Nf3 {[%emt 0:01:06]} Nd7 {[%emt 0:00:13]} 20. g4 {[%emt 0:00:38]} Qc7 {[%emt 0:00:26]} 21. f5 {[%emt 0:00:38]} Nc5 {[%emt 0:00:24] Black is clearly winning.} 22. Qe3 {[%emt 0:00:07]} Rac8 {[%emt 0:00:01]} 23. Ne1 {[%emt 0:00:32]} Ne4 {[%emt 0:00:31] [#] And now ...Qe5 would win.} 24. fxe6 {[%emt 0:00:15]} fxe6 {[%emt 0:00:03]} 25. Nd3 {[%emt 0:00:25] Against Qe5} Bg5 {[%emt 0:00:07]} 26. Qe2 {[%emt 0:00:25]} Qc3 {[%emt 0:00:24] Weighted Error Value: White=1.31/Black=0.29 (precise) .  Loses game:     	White=2     	---        Missed win:     	---       	Black=1      Mistake:       	White=2     	Black=1      Inaccurate:     	---       	Black=1      OK:         	White=5     	Black=5      Best:        	---       	Black=2} 0-1

[Event "Polish University-ch Women 2024"]
[Site "Lublin"]
[Date "2024.02.23"]
[Round "1.3"]
[White "Czarnecka, Lidia"]
[Black "Lisiecka, Aleksandra"]
[Result "1-0"]
[ECO "C02"]
[WhiteElo "2034"]
[BlackElo "1455"]
[Annotator "NA RC"]
[PlyCount "81"]
[EventDate "2024.02.22"]
[EventType "swiss"]
[EventCountry "POL"]
[SourceTitle "playchess.com"]
[Source "ChessBase"]
[SourceQuality "1"]
[TimeControl "600+3"]

1. e4 {[%emt 0:00:02]} e6 {[%emt 0:00:02]} 2. d4 {[%emt 0:00:01]} d5 {[%emt 0:00:02]} 3. e5 {[%emt 0:00:01]} c5 {[%emt 0:00:01]} 4. c3 {[%emt 0:00:01]} Qb6 {[%emt 0:00:05]} 5. Na3 {[%emt 0:00:05]} Nc6 {[%emt 0:00:09]} 6. Nc2 {[%emt 0:00:03]} Nge7 {[%emt 0:00:48]} 7. Nf3 {[%emt 0:00:09]} Nf5 {[%emt 0:00:03]} 8. Be2 {[%emt 0:00:20]} Be7 {[%emt 0:00:04]} 9. O-O {[%emt 0:00:02]} O-O {[%emt 0:00:03]} 10. Bd3 {[%emt 0:01:09]} cxd4 {[%emt 0:01:32]} 11. cxd4 {[%emt 0:00:02]} Bd7 {[%emt 0:00:05]} 12. g4 {[%emt 0:00:36]} Nh4 {[%emt 0:00:11]} 13. Nxh4 {[%emt 0:00:11]} Bxh4 {[%emt 0:00:04]} 14. g5 {[%emt 0:00:05]} Kh8 {[%emt 0:03:06]} 15. Qh5 {[%emt 0:00:16]} Bxf2+ {[%emt 0:00:39]} 16. Rxf2 {[%emt 0:00:04]} g6 {[%emt 0:00:03]} 17. Qg4 {[%emt 0:00:54]} Rac8 {[%emt 0:00:24]} 18. Rb1 {[%emt 0:00:51]} Ne7 {[%emt 0:00:58]} 19. Bd2 {[%emt 0:02:04]} Nf5 {[%emt 0:00:18]} 20. Qf4 {[%emt 0:01:22]} Rc7 {[%emt 0:00:34]} 21. b3 {[%emt 0:00:29]} Rfc8 {[%emt 0:00:09]} 22. Bxf5 {[%emt 0:00:12]} exf5 {[%emt 0:00:02]} 23. Ne3 {[%emt 0:00:01]} Be6 {[%emt 0:00:10]} 24. Qh4 {[%emt 0:00:20]} Rc6 {[%emt 0:00:16]} 25. Rf3 {[%emt 0:00:11]} R8c7 {[%emt 0:00:35]} 26. Rh3 {[%emt 0:00:07]} f6 {[%emt 0:00:01]} 27. Qf4 {[%emt 0:00:48]} fxg5 {[%emt 0:00:06]} 28. Qxg5 {[%emt 0:00:01]} Rg7 {[%emt 0:00:03]} 29. Rh4 {[%emt 0:00:13]} Rcc7 {[%emt 0:00:06]} 30. Qd8+ {[%emt 0:00:04]} Rg8 {[%emt 0:00:01]} 31. Qf6+ {[%emt 0:00:01]} Rcg7 {[%emt 0:00:02]} 32. Bc3 {[%emt 0:00:19]} Qa6 {[%emt 0:00:04]} 33. Rc1 {[%emt 0:00:18]} Bf7 {[%emt 0:00:04]} 34. Qxa6 {[%emt 0:00:02]} bxa6 {[%emt 0:00:01]} 35. Bb4 {[%emt 0:00:01]} Rd8 {[%emt 0:00:24]} 36. Be7 {[%emt 0:00:01]} Rd7 {[%emt 0:00:03]} 37. Bf6 {[%emt 0:00:03]} Bg8 {[%emt 0:00:15]} 38. Rc8 {[%emt 0:00:08]} a5 {[%emt 0:00:09]} 39. Rh3 {[%emt 0:00:04]} f4 {[%emt 0:00:03]} 40. Ng4 {[%emt 0:00:02]} Rdf7 {[%emt 0:00:18]} 41. Nh6 {[%emt 0:00:11]} 1-0

[Event "Polish University-ch Women 2024"]
[Site "Lublin"]
[Date "2024.02.23"]
[Round "1.4"]
[White "Waszkowska, Sandra"]
[Black "Wikar, Martyna"]
[Result "0-1"]
[ECO "A46"]
[WhiteElo "1356"]
[BlackElo "2214"]
[Annotator "RC"]
[PlyCount "46"]
[EventDate "2024.02.22"]
[EventType "swiss"]
[EventCountry "POL"]
[SourceTitle "playchess.com"]
[Source "ChessBase"]
[SourceQuality "1"]
[TimeControl "600+3"]

1. d4 {[%emt 0:00:02]} Nf6 {[%emt 0:00:02]} 2. Nf3 {[%emt 0:00:02]} e6 {[%emt 0:00:01]} 3. Bf4 {[%emt 0:00:01]} c5 {[%emt 0:00:05]} 4. c3 {[%emt 0:00:07]} Nc6 {[%emt 0:00:02]} 5. e3 {[%emt 0:00:01]} b6 {[%emt 0:00:26]} 6. h3 {[%emt 0:00:05]} Bb7 {[%emt 0:00:01]} 7. Be2 {[%emt 0:00:02]} Be7 {[%emt 0:00:10]} 8. O-O {[%emt 0:00:03]} O-O {[%emt 0:00:15]} 9. Re1 {[%emt 0:00:02]} Ne4 {[%emt 0:00:09]} 10. Nbd2 {[%emt 0:00:07]} f5 {[%emt 0:00:05]} 11. Ne5 {[%emt 0:00:54]} d6 {[%emt 0:02:12]} 12. Nxc6 {[%emt 0:00:05]} Bxc6 {[%emt 0:00:01]} 13. Bf3 {[%emt 0:00:09]} Bg5 {[%emt 0:00:19]} 14. Bh2 {[%emt 0:00:24]} cxd4 {[%emt 0:00:17]} 15. cxd4 {[%emt 0:00:49]} Bd5 {[%emt 0:00:02]} 16. Nxe4 {[%emt 0:01:39]} fxe4 {[%emt 0:00:05]} 17. Bg4 {[%emt 0:00:02]} Bh4 {[%emt 0:00:13]} 18. Rf1 {[%emt 0:00:16]} Rc8 {[%emt 0:00:30]} 19. Qa4 {[%emt 0:01:13]} b5 {[%emt 0:00:54]} 20. Qb4 {[%emt 0:00:31]} Rc2 {[%emt 0:00:17]} 21. Bxd6 {[%emt 0:01:08]} Rf4 {[%emt 0:05:00]} 22. f3 Rxf3 {[%emt 0:00:00]} 23. Rf2 Rfxf2 {[%emt 0:00:00]} 0-1

[Event "Polish University-ch Women 2024"]
[Site "Lublin"]
[Date "2024.02.23"]
[Round "1.5"]
[White "Kubicka, Anna"]
[Black "Zablocka, Marta"]
[Result "1-0"]
[ECO "B20"]
[WhiteElo "2278"]
[BlackElo "1354"]
[Annotator "TA"]
[PlyCount "57"]
[EventDate "2024.02.22"]
[EventType "swiss"]
[EventCountry "POL"]
[SourceTitle "playchess.com"]
[Source "ChessBase"]
[SourceQuality "1"]
[TimeControl "600+3"]

{[%evp 12,57,31,30,27,29,18,21,33,22,22,0,6,0,0,0,27,0,37,22,20,0,39,36,39,-6,-4,-7,0,0,61,-16,47,51,87,41,81,-8,78,78,150,-83,-93,-94,1118,1058,29998,29999]} 1. e4 {[%emt 0:00:03]} c5 {[%emt 0:00:01]} 2. Ne2 {[%emt 0:00:03]} Nc6 {[%emt 0:00:02]} 3. g3 {[%emt 0:00:02]} g6 {[%emt 0:00:03]} 4. Bg2 {[%emt 0:00:02]} Bg7 {[%emt 0:00:02]} 5. c3 {[%emt 0:00:03]} d6 {[%emt 0:00:16]} 6. d4 {[%emt 0:00:06]} cxd4 {[%emt 0:00:43]} 7. cxd4 {[%emt 0:00:02]} e6 {[%emt 0:00:33]} 8. O-O {[%emt 0:00:04]} Nge7 {[%emt 0:00:02]} 9. Nbc3 {[%emt 0:00:03]} O-O {[%emt 0:00:02] The position is equal.} 10. Be3 {[%emt 0:00:18]} d5 {[%emt 0:01:10]} 11. e5 {[%emt 0:00:26]} Nf5 {[%emt 0:00:09]} 12. Qd2 {[%emt 0:00:06]} b6 {[%emt 0:01:16]} 13. Rac1 {[%emt 0:00:06][%cal Oc3d5]} Qd7 {[%emt 0:01:05]} 14. Bh3 {[%emt 0:00:45]} Ba6 {[%emt 0:00:26]} 15. Bxf5 {[%emt 0:00:04]} exf5 {[%emt 0:00:03]} 16. Rfe1 {[%emt 0:00:16]} Nb4 {[%emt 0:02:21]} 17. Nf4 {[%emt 0:03:23] Repels Nd3} g5 {[%emt 0:00:26]} 18. Nh5 {[%emt 0:00:02] [#] Excellent horsemanship.} f4 $1 {[%emt 0:00:14]} 19. gxf4 {[%emt 0:01:39]} Qg4+ {[%emt 0:00:02]} 20. Ng3 {[%emt 0:00:02]} Nd3 {[%emt 0:00:51]} ({Black should try} 20... gxf4 $11 21. Bxf4 Nd3 22. Nxd5 Rfd8) 21. Nxd5 {[%emt 0:00:10]} (21. fxg5 $14 Qf3 22. Rcd1) 21... Nxc1 {[%emt 0:00:57]} (21... Rfd8 $11 22. f3 Qxf3 23. Ne7+ Kh8) 22. Rxc1 {[%emt 0:00:04]} Bb7 {[%emt 0:00:09]} 23. Ne7+ {[%emt 0:00:15]} Kh8 {[%emt 0:00:01]} 24. d5 {[%emt 0:01:00]} (24. f3 $16 Qxf3 25. fxg5) 24... gxf4 {[%emt 0:00:13]} (24... Rad8 $1 $11 {keeps the balance.}) 25. Bxf4 $16 {[%emt 0:00:05][%cal Of2f3] Black must now prevent f3!} Rfd8 {[%emt 0:00:04]} (25... Rad8 $142) 26. Rc7 $2 {[%emt 0:00:31] [#]} (26. Rc3 $16 {and life is bright.}) 26... Bxd5 $1 $17 {[%emt 0:00:03]} 27. Nxd5 {[%emt 0:00:04][%cal Of4g5] [#] Bg5! would now be deadly.} Rxd5 $4 {[%emt 0:00:04][%mdl 8192]} 28. Qxd5 $18 {[%emt 0:00:04]} Qxf4 {[%emt 0:00:01]} 29. Qxa8+ {[%emt 0:00:02] Weighted Error Value: White=0.42/Black=0.54.  Loses game:     	---       	Black=1      Mistake:       	White=3     	Black=4      Inaccurate:     	White=2     	Black=6      OK:         	White=3     	Black=6      Best:        	White=2     	---        Brilliant:      	---       	Black=2} 1-0

[Event "Polish University-ch Women 2024"]
[Site "Lublin"]
[Date "2024.02.23"]
[Round "1.6"]
[White "Jakubowska, Urszula"]
[Black "Kucharska, Honorata"]
[Result "0-1"]
[ECO "D02"]
[WhiteElo "1352"]
[BlackElo "2137"]
[Annotator "RC"]
[PlyCount "84"]
[EventDate "2024.02.22"]
[EventType "swiss"]
[EventCountry "POL"]
[SourceTitle "playchess.com"]
[Source "ChessBase"]
[SourceQuality "1"]
[TimeControl "600+3"]

1. d4 {[%emt 0:00:02]} Nf6 {[%emt 0:00:04]} 2. Nf3 {[%emt 0:00:02]} d5 {[%emt 0:00:03]} 3. Bf4 {[%emt 0:00:03]} e6 {[%emt 0:00:02]} 4. e3 {[%emt 0:00:18]} c5 {[%emt 0:00:18]} 5. c3 {[%emt 0:00:12]} Nc6 {[%emt 0:00:07]} 6. Bd3 {[%emt 0:00:17]} Bd6 {[%emt 0:00:35]} 7. Bg3 {[%emt 0:00:47]} Qe7 {[%emt 0:00:42]} 8. Qc2 {[%emt 0:00:24]} c4 {[%emt 0:00:33]} 9. Be2 {[%emt 0:00:26]} Bxg3 {[%emt 0:00:42]} 10. hxg3 {[%emt 0:00:21]} e5 {[%emt 0:00:09]} 11. dxe5 {[%emt 0:00:48]} Nxe5 {[%emt 0:00:08]} 12. Nbd2 {[%emt 0:01:17]} Nc6 {[%emt 0:01:08]} 13. Nh4 {[%emt 0:03:12]} Be6 {[%emt 0:00:56]} 14. Nf5 {[%emt 0:01:16]} Bxf5 {[%emt 0:00:01]} 15. Qxf5 {[%emt 0:00:01]} Qe5 {[%emt 0:01:37]} 16. Qxe5+ {[%emt 0:00:15]} Nxe5 {[%emt 0:00:01]} 17. Nf3 {[%emt 0:00:06]} Nc6 {[%emt 0:00:20]} 18. O-O {[%emt 0:00:29]} Ke7 {[%emt 0:00:34]} 19. Rad1 {[%emt 0:00:11]} Rhd8 {[%emt 0:00:03]} 20. Rfe1 {[%emt 0:00:02]} Kf8 {[%emt 0:00:21]} 21. Nh4 {[%emt 0:00:08]} g6 {[%emt 0:00:05]} 22. Nf3 {[%emt 0:00:06]} a5 {[%emt 0:00:08]} 23. Nd4 {[%emt 0:00:02]} Ne5 {[%emt 0:00:39]} 24. f4 {[%emt 0:00:07]} Nc6 {[%emt 0:00:13]} 25. Bf3 {[%emt 0:00:05]} a4 {[%emt 0:00:22]} 26. Nb5 {[%emt 0:00:14]} Ra5 {[%emt 0:00:03]} 27. Nd4 {[%emt 0:00:04]} a3 {[%emt 0:00:06]} 28. b3 {[%emt 0:00:01]} cxb3 {[%emt 0:00:19]} 29. Nxb3 {[%emt 0:00:01]} Raa8 {[%emt 0:00:05]} 30. Rd3 {[%emt 0:00:03]} Ne7 {[%emt 0:00:12]} 31. Red1 {[%emt 0:00:01]} Rdc8 {[%emt 0:00:12]} 32. Nd4 {[%emt 0:00:06]} Ra5 {[%emt 0:00:07]} 33. Nb3 {[%emt 0:00:05]} Ra4 {[%emt 0:00:03]} 34. Be2 {[%emt 0:00:02]} h5 {[%emt 0:00:06]} 35. Kf2 {[%emt 0:00:04]} Ne4+ {[%emt 0:00:02]} 36. Kf3 {[%emt 0:00:04]} Rxc3 {[%emt 0:00:06]} 37. Rxc3 {[%emt 0:00:03]} Nxc3 {[%emt 0:00:01]} 38. Rd2 {[%emt 0:00:02]} Ne4 {[%emt 0:00:14]} 39. Rc2 {[%emt 0:00:03]} Rb4 {[%emt 0:00:12]} 40. Nc5 {[%emt 0:00:04]} Nxc5 {[%emt 0:00:05]} 41. Rxc5 {[%emt 0:00:02]} Rb2 {[%emt 0:00:01]} 42. Ra5 {[%emt 0:00:03]} Rxa2 {[%emt 0:00:02]} 0-1

[Event "Polish University-ch Women 2024"]
[Site "Lublin"]
[Date "2024.02.23"]
[Round "1.7"]
[White "Jarocka, Liwia"]
[Black "Kukula, Klara"]
[Result "1-0"]
[ECO "B12"]
[WhiteElo "2199"]
[BlackElo "1406"]
[Annotator "RC"]
[PlyCount "68"]
[EventDate "2024.02.22"]
[EventType "swiss"]
[EventCountry "POL"]
[SourceTitle "playchess.com"]
[Source "ChessBase"]
[SourceQuality "1"]
[TimeControl "600+3"]

1. e4 {[%emt 0:00:01]} c6 {[%emt 0:00:01]} 2. d4 {[%emt 0:00:01]} d5 {[%emt 0:00:01]} 3. f3 {[%emt 0:00:02]} Nd7 {[%emt 0:01:31]} 4. Nc3 {[%emt 0:00:09]} e6 {[%emt 0:00:18]} 5. Bd3 {[%emt 0:00:05]} Nb6 {[%emt 0:01:30]} 6. Be3 {[%emt 0:00:39]} a5 {[%emt 0:02:05]} 7. e5 {[%emt 0:00:17]} Ne7 {[%emt 0:00:29]} 8. f4 {[%emt 0:00:14]} Nf5 {[%emt 0:01:04]} 9. Bf2 {[%emt 0:00:14]} h5 {[%emt 0:00:40]} 10. Nce2 {[%emt 0:00:35]} Qc7 {[%emt 0:00:25]} 11. Nf3 {[%emt 0:00:25]} c5 {[%emt 0:00:55]} 12. O-O {[%emt 0:00:14]} c4 {[%emt 0:00:57]} 13. Bxf5 {[%emt 0:00:03]} exf5 {[%emt 0:00:01]} 14. Re1 {[%emt 0:01:02]} Be7 {[%emt 0:00:09]} 15. c3 {[%emt 0:00:09]} Qd8 {[%emt 0:00:17]} 16. h3 {[%emt 0:00:27]} g5 {[%emt 0:00:09]} 17. fxg5 {[%emt 0:00:06]} Bxg5 {[%emt 0:00:01]} 18. Nxg5 {[%emt 0:00:09]} Qxg5 {[%emt 0:00:02]} 19. Qc1 {[%emt 0:00:08]} Qg7 {[%emt 0:00:07]} 20. Qf4 {[%emt 0:00:15]} Rg8 {[%emt 0:00:05]} 21. Qf3 {[%emt 0:00:01]} Qg5 {[%emt 0:00:09]} 22. Be3 {[%emt 0:00:23]} Qg7 {[%emt 0:00:04]} 23. Nf4 {[%emt 0:00:02]} h4 {[%emt 0:00:04]} 24. Nh5 {[%emt 0:00:02]} Qg6 {[%emt 0:00:05]} 25. Nf6+ {[%emt 0:00:03]} Kf8 {[%emt 0:00:03]} 26. Nxg8 {[%emt 0:00:03]} Qxg8 {[%emt 0:00:02]} 27. Qf4 {[%emt 0:00:02]} Ke8 {[%emt 0:00:04]} 28. Qxh4 {[%emt 0:00:03]} Be6 {[%emt 0:00:04]} 29. Qg5 {[%emt 0:00:02]} Qf8 {[%emt 0:00:01]} 30. Rf1 {[%emt 0:00:21]} Qh8 {[%emt 0:00:03]} 31. Rf4 {[%emt 0:00:05]} Kd7 {[%emt 0:00:01]} 32. Rh4 {[%emt 0:00:24]} Qf8 {[%emt 0:00:07]} 33. Rf1 {[%emt 0:00:03]} Nc8 {[%emt 0:00:02]} 34. Rxf5 {[%emt 0:00:10]} Ne7 {[%emt 0:00:09]} 1-0